fUSD/lending_fUSD_20260527
["ID","MTS","AMOUNT","RATE_DAILY","PERIOD"]
[423156180,1779897035000,-547.21,0.00013966,2]
[423156184,1779897035000,-1033.27,0.00013966,2]
[423156182,1779897035000,-1033.27,0.00013966,2]
[423156187,1779897035000,-1033.27,0.00013966,2]
[423156181,1779897035000,-1033.27,0.00013966,2]
[423156185,1779897035000,-1033.27,0.00013966,2]
[423156190,1779897035000,-1033.27,0.00013966,2]
[423156173,1779897035000,-547.21,0.00013966,2]
[423156177,1779897035000,-547.21,0.00013966,2]
[423156179,1779897035000,-547.21,0.00013966,2]
[423156172,1779897035000,-547.21,0.00013966,2]
[423156174,1779897035000,-547.21,0.00013966,2]
[423156175,1779897035000,-547.21,0.00013966,2]
[423156178,1779897035000,-547.21,0.00013966,2]
[423156186,1779897035000,-1033.27,0.00013966,2]
[423156176,1779897035000,-547.21,0.00013966,2]
[423156189,1779897035000,-1033.27,0.00013966,2]
[423156183,1779897035000,-1033.27,0.00013966,2]
[423156191,1779897035000,-1033.27,0.00013966,2]
[423156207,1779897035000,-64166.07182246,0.00013967,2]
[423156206,1779897035000,-13105.55946341,0.00013967,2]
[423156203,1779897035000,-175.0512305,0.00013966,2]
[423156205,1779897035000,-123998.37009084,0.00013967,2]
[423156204,1779897035000,-500.0,0.00013966,2]
[423156188,1779897035000,-1033.27,0.00013966,2]
[423156202,1779897035000,-175.2751763,0.00013966,2]
[423156199,1779897035000,-500.0,0.00013966,2]
[423156192,1779897035000,-1033.27,0.00013966,2]
[423156200,1779897035000,-173.0,0.00013966,2]
[423156198,1779897035000,-500.0,0.00013966,2]
[423156196,1779897035000,-1033.27,0.00013966,2]
[423156197,1779897035000,-1033.27,0.00013966,2]
[423156195,1779897035000,-1033.27,0.00013966,2]
[423156194,1779897035000,-1033.27,0.00013966,2]
[423156193,1779897035000,-1033.27,0.00013966,2]
[423156201,1779897035000,-173.0,0.00013966,2]
[423156218,1779897037000,-500.0,0.00013869,2]
[423156221,1779897037000,-151.0,0.00013967,2]
[423156219,1779897037000,-1298729.99862329,0.00013967,2]
[423156220,1779897037000,-2500000.0,0.00013967,2]
[423156216,1779897037000,-500.0,0.00013869,2]
[423156222,1779897037000,-151.0,0.00013967,2]
[423156214,1779897037000,-500.0,0.00013869,2]
[423156217,1779897037000,-500.0,0.00013869,2]
[423156223,1779897037000,-151.0,0.00013967,2]
[423156225,1779897037000,-151.0,0.00013967,2]
[423156224,1779897037000,-151.0,0.00013967,2]
[423156215,1779897037000,-500.0,0.00013869,2]
[423156262,1779897038000,-566.9,0.00014862,2]
[423156266,1779897038000,-656.65,0.00014862,2]
[423156264,1779897038000,-656.65,0.00014862,2]
[423156272,1779897038000,-500.0,0.00014862,2]
[423156265,1779897038000,-656.65,0.00014862,2]
[423156261,1779897038000,-566.9,0.00014862,2]
[423156263,1779897038000,-566.9,0.00014862,2]
[423156254,1779897038000,-150.0,0.00014858,2]
[423156257,1779897038000,-566.9,0.00014862,2]
[423156256,1779897038000,-233.0,0.00014858,2]
[423156253,1779897038000,-500.0,0.0001481,2]
[423156267,1779897038000,-656.65,0.00014862,2]
[423156271,1779897038000,-500.0,0.00014862,2]
[423156279,1779897038000,-500.0,0.00014862,2]
[423156270,1779897038000,-656.65,0.00014862,2]
[423156273,1779897038000,-500.0,0.00014862,2]
[423156269,1779897038000,-656.65,0.00014862,2]
[423156275,1779897038000,-500.0,0.00014862,2]
[423156274,1779897038000,-500.0,0.00014862,2]
[423156285,1779897038000,-500.0,0.00014862,2]
[423156280,1779897038000,-500.0,0.00014862,2]
[423156276,1779897038000,-500.0,0.00014862,2]
[423156289,1779897038000,-500.0,0.00014862,2]
[423156278,1779897038000,-500.0,0.00014862,2]
[423156287,1779897038000,-500.0,0.00014862,2]
[423156277,1779897038000,-500.0,0.00014862,2]
[423156255,1779897038000,-150.0,0.00014858,2]
[423156268,1779897038000,-656.65,0.00014862,2]
[423156258,1779897038000,-566.9,0.00014862,2]
[423156242,1779897038000,-166.66,0.00014513,2]
[423156251,1779897038000,-500.0,0.0001481,2]
[423156281,1779897038000,-500.0,0.00014862,2]
[423156234,1779897038000,-155.23,0.00014034,2]
[423156233,1779897038000,-415.24,0.00014,2]
[423156235,1779897038000,-166.66,0.00014063,2]
[423156226,1779897038000,-330.0,0.00013973,3]
[423156228,1779897038000,-412.89,0.00013986,2]
[423156227,1779897038000,-166.66,0.00013973,2]
[423156231,1779897038000,-383.1,0.00013986,2]
[423156229,1779897038000,-150.0,0.00013986,2]
[423156230,1779897038000,-238.98,0.00013986,2]
[423156232,1779897038000,-250.0,0.00014,2]
[423156236,1779897038000,-220.03,0.0001407,2]
[423156237,1779897038000,-166.66,0.0001411,2]
[423156240,1779897038000,-166.66,0.00014384,2]
[423156238,1779897038000,-182.15,0.00014148,2]
[423156243,1779897038000,-96755.11314787,0.00014571,2]
[423156241,1779897038000,-220.03,0.00014451,2]
[423156239,1779897038000,-166.66,0.00014247,2]
[423156244,1779897038000,-151.0,0.00014682,2]
[423156247,1779897038000,-2351.0,0.00014789,2]
[423156245,1779897038000,-5996.4441,0.00014696,2]
[423156246,1779897038000,-2000.0,0.00014711,2]
[423156249,1779897038000,-500.0,0.0001481,2]
[423156259,1779897038000,-566.9,0.00014862,2]
[423156260,1779897038000,-566.9,0.00014862,2]
[423156248,1779897038000,-500.0,0.0001481,2]
[423156250,1779897038000,-500.0,0.0001481,2]
[423156252,1779897038000,-500.0,0.0001481,2]
[423156282,1779897038000,-500.0,0.00014862,2]
[423156283,1779897038000,-500.0,0.00014862,2]
[423156398,1779897038000,-656.65,0.00014999,2]
[423156351,1779897038000,-547.21,0.00014998,2]
[423156359,1779897038000,-566.9,0.00014999,2]
[423156349,1779897038000,-433.0,0.00014985,2]
[423156364,1779897038000,-566.9,0.00014999,2]
[423156366,1779897038000,-566.9,0.00014999,2]
[423156368,1779897038000,-566.9,0.00014999,2]
[423156370,1779897038000,-566.9,0.00014999,2]
[423156372,1779897038000,-566.9,0.00014999,2]
[423156378,1779897038000,-566.9,0.00014999,2]
[423156380,1779897038000,-566.9,0.00014999,2]
[423156376,1779897038000,-566.9,0.00014999,2]
[423156383,1779897038000,-566.9,0.00014999,2]
[423156387,1779897038000,-566.9,0.00014999,2]
[423156347,1779897038000,-155.23,0.00014969,2]
[423156385,1779897038000,-566.9,0.00014999,2]
[423156391,1779897038000,-656.65,0.00014999,2]
[423156394,1779897038000,-656.65,0.00014999,2]
[423156404,1779897038000,-656.65,0.00014999,2]
[423156406,1779897038000,-656.65,0.00014999,2]
[423156410,1779897038000,-656.65,0.00014999,2]
[423156408,1779897038000,-656.65,0.00014999,2]
[423156412,1779897038000,-656.65,0.00014999,2]
[423156396,1779897038000,-656.65,0.00014999,2]
[423156400,1779897038000,-656.65,0.00014999,2]
[423156416,1779897038000,-656.65,0.00014999,2]
[423156402,1779897038000,-656.65,0.00014999,2]
[423156414,1779897038000,-656.65,0.00014999,2]
[423156292,1779897038000,-500.0,0.00014862,2]
[423156389,1779897038000,-567.0985681,0.00014999,2]
[423156361,1779897038000,-566.9,0.00014999,2]
[423156374,1779897038000,-566.9,0.00014999,2]
[423156357,1779897038000,-566.9,0.00014999,2]
[423156294,1779897038000,-500.0,0.00014862,2]
[423156308,1779897038000,-500.0,0.00014862,2]
[423156345,1779897038000,-166.66,0.00014962,2]
[423156306,1779897038000,-500.0,0.00014862,2]
[423156300,1779897038000,-500.0,0.00014862,2]
[423156298,1779897038000,-500.0,0.00014862,2]
[423156302,1779897038000,-500.0,0.00014862,2]
[423156304,1779897038000,-500.0,0.00014862,2]
[423156296,1779897038000,-500.0,0.00014862,2]
[423156312,1779897038000,-500.0,0.00014862,2]
[423156314,1779897038000,-500.0,0.00014862,2]
[423156316,1779897038000,-500.0,0.00014862,2]
[423156317,1779897038000,-500.0,0.00014862,2]
[423156319,1779897038000,-500.0,0.00014862,2]
[423156310,1779897038000,-500.0,0.00014862,2]
[423156331,1779897038000,-500.0,0.00014862,2]
[423156355,1779897038000,-566.9,0.00014999,2]
[423156329,1779897038000,-500.0,0.00014862,2]
[423156353,1779897038000,-1033.27,0.00014998,2]
[423156341,1779897038000,-500.0,0.00014862,2]
[423156339,1779897038000,-500.0,0.00014862,2]
[423156327,1779897038000,-500.0,0.00014862,2]
[423156337,1779897038000,-500.0,0.00014862,2]
[423156343,1779897038000,-500.0,0.00014862,2]
[423156335,1779897038000,-500.0,0.00014862,2]
[423156323,1779897038000,-500.0,0.00014862,2]
[423156321,1779897038000,-500.0,0.00014862,2]
[423156325,1779897038000,-500.0,0.00014862,2]
[423156333,1779897038000,-500.0,0.00014862,2]
[423156511,1779897039000,-500.0,0.00014999,2]
[423156496,1779897039000,-500.0,0.00014999,2]
[423156494,1779897039000,-500.0,0.00014999,2]
[423156492,1779897039000,-500.0,0.00014999,2]
[423156490,1779897039000,-151.28,0.00014999,2]
[423156484,1779897039000,-500.0,0.00014999,2]
[423156486,1779897039000,-500.0,0.00014999,2]
[423156482,1779897039000,-500.0,0.00014999,2]
[423156472,1779897039000,-500.0,0.00014999,2]
[423156468,1779897039000,-500.0,0.00014999,2]
[423156500,1779897039000,-500.0,0.00014999,2]
[423156488,1779897039000,-500.0,0.00014999,2]
[423156510,1779897039000,-500.0,0.00014999,2]
[423156524,1779897039000,-500.0,0.00014999,2]
[423156504,1779897039000,-626.14,0.00014999,2]
[423156505,1779897039000,-500.0,0.00014999,2]
[423156502,1779897039000,-500.0,0.00014999,2]
[423156508,1779897039000,-500.0,0.00014999,2]
[423156515,1779897039000,-500.0,0.00014999,2]
[423156514,1779897039000,-500.0,0.00014999,2]
[423156518,1779897039000,-500.0,0.00014999,2]
[423156529,1779897039000,-500.0,0.00014999,2]
[423156520,1779897039000,-500.0,0.00014999,2]
[423156531,1779897039000,-500.0,0.00014999,2]
[423156533,1779897039000,-500.0,0.00014999,2]
[423156480,1779897039000,-500.0,0.00014999,2]
[423156498,1779897039000,-500.0,0.00014999,2]
[423156476,1779897039000,-500.0,0.00014999,2]
[423156526,1779897039000,-500.0,0.00014999,2]
[423156478,1779897039000,-500.0,0.00014999,2]
[423156527,1779897039000,-500.0,0.00014999,2]
[423156422,1779897039000,-656.65,0.00014999,2]
[423156420,1779897039000,-656.65,0.00014999,2]
[423156423,1779897039000,-656.86,0.00014999,2]
[423156426,1779897039000,-500.0,0.00014999,2]
[423156418,1779897039000,-656.65,0.00014999,2]
[423156438,1779897039000,-500.0,0.00014999,2]
[423156434,1779897039000,-420.1,0.00014999,2]
[423156430,1779897039000,-500.0,0.00014999,2]
[423156428,1779897039000,-500.0,0.00014999,2]
[423156436,1779897039000,-500.0,0.00014999,2]
[423156442,1779897039000,-500.0,0.00014999,2]
[423156432,1779897039000,-500.0,0.00014999,2]
[423156440,1779897039000,-519.56568703,0.00014999,2]
[423156455,1779897039000,-500.0,0.00014999,2]
[423156445,1779897039000,-500.0,0.00014999,2]
[423156457,1779897039000,-214.84,0.00014999,2]
[423156456,1779897039000,-500.0,0.00014999,2]
[423156459,1779897039000,-500.0,0.00014999,2]
[423156461,1779897039000,-500.0,0.00014999,2]
[423156464,1779897039000,-500.0,0.00014999,2]
[423156447,1779897039000,-500.0,0.00014999,2]
[423156466,1779897039000,-500.0,0.00014999,2]
[423156453,1779897039000,-500.0,0.00014999,2]
[423156451,1779897039000,-500.0,0.00014999,2]
[423156449,1779897039000,-500.0,0.00014999,2]
[423156470,1779897039000,-500.0,0.00014999,2]
[423156473,1779897039000,-500.0,0.00014999,2]
[423156535,1779897039000,-500.0,0.00014999,2]
[423156570,1779897039000,-500.0,0.00015806,2]
[423156522,1779897039000,-500.0,0.00014999,2]
[423156608,1779897039000,-96755.11314787,0.00016683,2]
[423156604,1779897039000,-353.0,0.00016547,2]
[423156600,1779897039000,-191.01081584,0.00016439,2]
[423156612,1779897039000,-169.36,0.00016767,2]
[423156624,1779897039000,-530.08819485,0.00017529,2]
[423156622,1779897039000,-96755.11314787,0.00017388,2]
[423156626,1779897039000,-2000.0,0.00017676,2]
[423156628,1779897039000,-1252.0,0.00017698,2]
[423156630,1779897039000,-155.23,0.00017776,2]
[423156614,1779897039000,-155.23,0.0001684,2]
[423156620,1779897039000,-23325.06390724,0.000172,2]
[423156616,1779897039000,-547.21,0.0001704,2]
[423156618,1779897039000,-1033.27,0.0001704,2]
[423156632,1779897039000,-4609.0,0.00017895,2]
[423156636,1779897039000,-2000.0,0.00018107,2]
[423156638,1779897039000,-547.21,0.00018121,2]
[423156640,1779897039000,-547.21,0.00018121,2]
[423156642,1779897039000,-547.21,0.00018121,2]
[423156649,1779897039000,-1033.27,0.00018121,2]
[423156644,1779897039000,-547.21,0.00018121,2]
[423156647,1779897039000,-547.28164116,0.00018121,2]
[423156651,1779897039000,-1033.27,0.00018121,2]
[423156656,1779897039000,-1033.47102117,0.00018121,2]
[423156653,1779897039000,-1033.27,0.00018121,2]
[423156654,1779897039000,-1033.27,0.00018121,2]
[423156658,1779897039000,-1880.5242449,0.0001816,2]
[423156659,1779897039000,-3233.2,0.00018342,2]
[423156610,1779897039000,-415.24,0.000167,2]
[423156602,1779897039000,-186.86,0.00016468,2]
[423156634,1779897039000,-96755.11314787,0.00018092,2]
[423156592,1779897039000,-3292.0,0.00016268,2]
[423156596,1779897039000,-466.2,0.00016438,2]
[423156541,1779897039000,-422.19784731,0.00014999,2]
[423156539,1779897039000,-500.0,0.00014999,2]
[423156543,1779897039000,-587.0,0.00015081,2]
[423156545,1779897039000,-2000.0,0.00015089,2]
[423156546,1779897039000,-182.15,0.00015159,2]
[423156549,1779897039000,-500.0,0.00015258,2]
[423156550,1779897039000,-500.0,0.00015258,2]
[423156560,1779897039000,-500.0,0.00015258,2]
[423156572,1779897039000,-500.0,0.00015806,2]
[423156564,1779897039000,-96755.11314787,0.00015275,2]
[423156574,1779897039000,-500.0,0.00015806,2]
[423156562,1779897039000,-832.0,0.00015258,2]
[423156578,1779897039000,-166.66,0.00015861,2]
[423156537,1779897039000,-500.0,0.00014999,2]
[423156606,1779897039000,-2000.0,0.00016598,2]
[423156594,1779897039000,-736.0,0.00016278,2]
[423156598,1779897039000,-150.0,0.00016439,2]
[423156588,1779897039000,-453.99205745,0.000161,2]
[423156586,1779897039000,-453.99205745,0.00016,2]
[423156584,1779897039000,-300.0,0.00016,2]
[423156590,1779897039000,-453.99205745,0.000162,2]
[423156580,1779897039000,-155.23,0.00015905,2]
[423156582,1779897039000,-96755.11314787,0.00015979,2]
[423156566,1779897039000,-166.66,0.00015411,2]
[423156576,1779897039000,-500.0,0.00015806,2]
[423156568,1779897039000,-500.0,0.00015532,2]
[423156699,1779897040000,-155.0,0.00021,2]
[423156704,1779897040000,-852.0,0.00021,2]
[423156705,1779897040000,-230.0,0.00021,2]
[423156700,1779897040000,-156.0,0.00021,2]
[423156701,1779897040000,-276.0,0.00021,2]
[423156694,1779897040000,-2000.0,0.00020488,2]
[423156716,1779897040000,-5000.0,0.00021918,2]
[423156695,1779897040000,-23325.06390724,0.00020633,2]
[423156692,1779897040000,-213.52814154,0.00020304,2]
[423156693,1779897040000,-466.2,0.00020381,2]
[423156691,1779897040000,-96755.11314787,0.00020204,2]
[423156703,1779897040000,-195.0,0.00021,2]
[423156690,1779897040000,-2831.62,0.0002,2]
[423156709,1779897040000,-159.57818894,0.00021483,2]
[423156712,1779897040000,-2831.62,0.00021793,2]
[423156711,1779897040000,-415.24,0.000216,2]
[423156708,1779897040000,-2005.9555727,0.00021349,2]
[423156702,1779897040000,-186.0,0.00021,2]
[423156706,1779897040000,-169.36,0.00021205,2]
[423156707,1779897040000,-175.78,0.00021273,2]
[423156688,1779897040000,-1006.0,0.0002,2]
[423156723,1779897040000,-852.0,0.00022,2]
[423156715,1779897040000,-1700.0,0.000219,7]
[423156713,1779897040000,-252.30421175,0.00021845,2]
[423156714,1779897040000,-2080.17592889,0.00021897,2]
[423156724,1779897040000,-230.0,0.00022,2]
[423156719,1779897040000,-156.0,0.00022,2]
[423156720,1779897040000,-276.0,0.00022,2]
[423156710,1779897040000,-330.0,0.00021485,3]
[423156689,1779897040000,-2000.0,0.0002,7]
[423156677,1779897040000,-500.0,0.00019999,2]
[423156698,1779897040000,-279.0,0.00021,2]
[423156721,1779897040000,-186.0,0.00022,2]
[423156660,1779897040000,-466.2,0.0001841,2]
[423156662,1779897040000,-96755.11314787,0.00018796,2]
[423156670,1779897040000,-500.0,0.00019999,2]
[423156669,1779897040000,-208.95417009,0.00019999,2]
[423156672,1779897040000,-500.0,0.00019999,2]
[423156671,1779897040000,-636.38628191,0.00019999,2]
[423156663,1779897040000,-2129.0,0.00019244,2]
[423156666,1779897040000,-2644.0,0.00019684,2]
[423156664,1779897040000,-96755.11314787,0.000195,2]
[423156661,1779897040000,-155.23,0.00018712,2]
[423156668,1779897040000,-197.36969065,0.00019999,2]
[423156665,1779897040000,-155.23,0.00019647,2]
[423156686,1779897040000,-230.0,0.0002,2]
[423156667,1779897040000,-186.86,0.00019761,2]
[423156675,1779897040000,-646.68811931,0.00019999,2]
[423156679,1779897040000,-279.0,0.0002,2]
[423156681,1779897040000,-156.0,0.0002,2]
[423156682,1779897040000,-276.0,0.0002,2]
[423156678,1779897040000,-500.0,0.00019999,2]
[423156685,1779897040000,-852.0,0.0002,2]
[423156674,1779897040000,-500.0,0.00019999,2]
[423156680,1779897040000,-155.0,0.0002,2]
[423156676,1779897040000,-500.0,0.00019999,2]
[423156684,1779897040000,-195.0,0.0002,2]
[423156683,1779897040000,-186.0,0.0002,2]
[423156687,1779897040000,-1400.0,0.0002,12]
[423156697,1779897040000,-3620.0,0.00020918,2]
[423156673,1779897040000,-500.0,0.00019999,2]
[423156718,1779897040000,-155.0,0.00022,2]
[423156696,1779897040000,-541.00133101,0.00020885,2]
[423156717,1779897040000,-279.0,0.00022,2]
[423156761,1779897040000,-195.0,0.00024,2]
[423156756,1779897040000,-569.0,0.00023623,2]
[423156757,1779897040000,-279.0,0.00024,2]
[423156754,1779897040000,-94228.90403346,0.00023523,2]
[423156762,1779897040000,-852.0,0.00024,2]
[423156760,1779897040000,-186.0,0.00024,2]
[423156763,1779897040000,-230.0,0.00024,2]
[423156765,1779897040000,-1466.84,0.00024174,2]
[423156774,1779897040000,-250.0,0.00024505,2]
[423156783,1779897040000,-281.31,0.00024658,2]
[423156764,1779897040000,-23325.06390724,0.00024066,2]
[423156766,1779897040000,-1187.06,0.00024174,2]
[423156767,1779897040000,-44573.31,0.00024174,2]
[423156769,1779897040000,-466.2,0.00024324,2]
[423156775,1779897040000,-250.0,0.00024505,2]
[423156770,1779897040000,-280.0,0.000245,2]
[423156773,1779897040000,-250.0,0.00024505,2]
[423156771,1779897040000,-150.0,0.000245,2]
[423156768,1779897040000,-293.75,0.00024174,2]
[423156777,1779897040000,-250.0,0.00024505,2]
[423156776,1779897040000,-250.0,0.00024505,2]
[423156779,1779897040000,-250.0,0.00024505,2]
[423156778,1779897040000,-250.0,0.00024505,2]
[423156782,1779897040000,-1000.0,0.00024658,2]
[423156781,1779897040000,-228.9,0.00024658,2]
[423156786,1779897040000,-577.0,0.00024785,2]
[423156780,1779897040000,-382.0,0.00024505,2]
[423156784,1779897040000,-159.48,0.00024658,2]
[423156722,1779897040000,-195.0,0.00022,2]
[423156759,1779897040000,-276.0,0.00024,2]
[423156751,1779897040000,-320.0,0.00023,2]
[423156772,1779897040000,-219.0,0.000245,2]
[423156753,1779897040000,-2000.0,0.00023299,2]
[423156758,1779897040000,-155.0,0.00024,2]
[423156725,1779897040000,-247.49,0.00022,2]
[423156729,1779897040000,-94228.90403346,0.00022443,2]
[423156728,1779897040000,-611.0,0.00022411,2]
[423156727,1779897040000,-466.2,0.00022353,2]
[423156733,1779897040000,-500.0,0.00022648,2]
[423156735,1779897040000,-503.80292184,0.00022648,2]
[423156730,1779897040000,-2157.14243826,0.00022445,2]
[423156736,1779897040000,-500.0,0.00022648,2]
[423156732,1779897040000,-749.01,0.00022466,2]
[423156737,1779897040000,-500.0,0.00022648,2]
[423156726,1779897040000,-150.0,0.00022158,21]
[423156731,1779897040000,-1880.5242449,0.00022453,2]
[423156749,1779897040000,-195.0,0.00023,2]
[423156734,1779897040000,-374.2529762,0.00022648,2]
[423156740,1779897040000,-500.0,0.00022648,2]
[423156755,1779897040000,-2831.62,0.00023586,2]
[423156741,1779897040000,-500.0,0.00022648,2]
[423156752,1779897040000,-230.0,0.00023,2]
[423156785,1779897040000,-159.68,0.00024658,2]
[423156750,1779897040000,-852.0,0.00023,2]
[423156743,1779897040000,-1299.03083609,0.00022993,2]
[423156744,1779897040000,-279.0,0.00023,2]
[423156746,1779897040000,-160.74390872,0.00023,2]
[423156742,1779897040000,-3605.0,0.00022731,2]
[423156747,1779897040000,-276.0,0.00023,2]
[423156748,1779897040000,-186.0,0.00023,2]
[423156739,1779897040000,-500.55356885,0.00022648,2]
[423156738,1779897040000,-502.4828642,0.00022648,2]
[423156745,1779897040000,-155.0,0.00023,2]
[423156814,1779897041000,-159.48,0.00026105,7]
[423156819,1779897041000,-845.0,0.00026412,2]
[423156812,1779897041000,-293.75,0.00025786,2]
[423156813,1779897041000,-500.0,0.00026,2]
[423156815,1779897041000,-159.68,0.00026105,7]
[423156811,1779897041000,-44573.31,0.00025786,2]
[423156817,1779897041000,-987.0,0.00026321,2]
[423156818,1779897041000,-273.0,0.00026356,2]
[423156816,1779897041000,-466.2,0.00026296,2]
[423156826,1779897041000,-160.0,0.00027,3]
[423156820,1779897041000,-2000.0,0.00026667,7]
[423156821,1779897041000,-12254.31990349,0.00026746,2]
[423156822,1779897041000,-1880.5242449,0.00026746,2]
[423156824,1779897041000,-200.0,0.0002681,2]
[423156825,1779897041000,-206.01672532,0.0002681,2]
[423156827,1779897041000,-330.0,0.00027083,8]
[423156810,1779897041000,-1187.06,0.00025786,2]
[423156828,1779897041000,-2831.62,0.00027173,7]
[423156823,1779897041000,-598.62934302,0.00026746,2]
[423156808,1779897041000,-175.78,0.00025786,2]
[423156792,1779897041000,-277.0,0.00025,2]
[423156806,1779897041000,-873.21658609,0.00025684,2]
[423156829,1779897041000,-1000.0,0.00027201,2]
[423156787,1779897041000,-415.24,0.000248,7]
[423156789,1779897041000,-247.49,0.00024954,7]
[423156790,1779897041000,-280.0,0.00025,2]
[423156791,1779897041000,-157.0,0.00025,2]
[423156793,1779897041000,-195.0,0.00025,2]
[423156794,1779897041000,-210.50535349,0.00025,2]
[423156797,1779897041000,-171.19,0.00025,2]
[423156795,1779897041000,-857.98581358,0.00025,2]
[423156796,1779897041000,-244.54272136,0.00025,2]
[423156799,1779897041000,-171.19,0.00025,2]
[423156798,1779897041000,-171.19,0.00025,2]
[423156800,1779897041000,-171.19,0.00025,2]
[423156801,1779897041000,-200.0,0.00025085,2]
[423156803,1779897041000,-2831.62,0.0002538,7]
[423156804,1779897041000,-500.0,0.00025644,2]
[423156802,1779897041000,-635.0,0.00025362,2]
[423156805,1779897041000,-169.36,0.00025644,2]
[423156807,1779897041000,-306.93034277,0.00025785,2]
[423156809,1779897041000,-1466.84,0.00025786,2]
[423156830,1779897041000,-1500.0,0.00027397,2]
[423156788,1779897041000,-200.0,0.00024837,2]
[423156832,1779897041000,-245.80659135,0.00027397,7]
[423156857,1779897041000,-384.03,0.00027909,7]
[423156858,1779897041000,-453.58,0.00027927,7]
[423156859,1779897041000,-159.52,0.00027927,7]
[423156860,1779897041000,-455.14,0.00027945,7]
[423156862,1779897041000,-215.46156935,0.00028,7]
[423156865,1779897041000,-381.89,0.00028031,2]
[423156866,1779897041000,-384.03,0.00028045,2]
[423156861,1779897041000,-159.57,0.00027945,7]
[423156864,1779897041000,-160.0,0.00028,7]
[423156863,1779897041000,-160.0,0.00028,10]
[423156868,1779897041000,-159.52,0.00028061,2]
[423156870,1779897041000,-159.57,0.00028077,2]
[423156869,1779897041000,-455.14,0.00028077,2]
[423156871,1779897041000,-151.58572336,0.00028082,5]
[423156873,1779897041000,-212.64,0.0002813,7]
[423156872,1779897041000,-320.0,0.000281,7]
[423156875,1779897041000,-381.89,0.0002817,30]
[423156874,1779897041000,-212.91,0.0002813,7]
[423156833,1779897041000,-150.0,0.00027397,7]
[423156855,1779897041000,-381.89,0.00027893,7]
[423156856,1779897041000,-247.49,0.00027908,7]
[423156867,1779897041000,-453.58,0.00028061,2]
[423156854,1779897041000,-212.63,0.00027846,2]
[423156831,1779897041000,-228.9,0.00027397,8]
[423156853,1779897041000,-212.9,0.00027822,2]
[423156835,1779897041000,-20991.97,0.00027397,10]
[423156837,1779897041000,-300.0,0.00027397,2]
[423156841,1779897041000,-150.0,0.00027521,2]
[423156836,1779897041000,-17493.31,0.00027397,10]
[423156839,1779897041000,-5947.24,0.000274,14]
[423156838,1779897041000,-190.97,0.000274,7]
[423156840,1779897041000,-23325.06390724,0.000275,2]
[423156842,1779897041000,-163.37,0.00027552,30]
[423156834,1779897041000,-281.31,0.00027397,2]
[423156847,1779897041000,-384.03,0.00027773,30]
[423156850,1779897041000,-159.52,0.00027793,30]
[423156848,1779897041000,-1054.0,0.00027777,2]
[423156844,1779897041000,-159.68,0.00027552,30]